fUSD/lending_fUSD_20250113
["ID","MTS","AMOUNT","RATE_DAILY","PERIOD"]
[348779723,1736781044375,-500.0,9.986e-05,2]
[348779724,1736781044385,-501.29182002,9.986e-05,2]
[348779725,1736781044396,-500.0,9.986e-05,2]
[348779726,1736781044406,-500.0,9.986e-05,2]
[348779727,1736781044418,-500.0,9.986e-05,2]
[348779728,1736781044428,-500.0,9.986e-05,2]
[348779729,1736781044439,-500.0,9.986e-05,2]
[348779730,1736781044450,-500.0,9.986e-05,2]
[348779731,1736781044460,-500.0,9.986e-05,2]
[348779732,1736781044471,-500.0,9.986e-05,2]
[348779733,1736781044483,-500.0,9.986e-05,2]
[348779734,1736781044494,-500.0,9.986e-05,2]
[348779735,1736781044504,-500.0,9.986e-05,2]
[348779736,1736781044515,-500.0,9.986e-05,2]
[348779737,1736781044525,-500.0,9.986e-05,2]
[348779738,1736781044541,-500.0,9.986e-05,2]
[348779739,1736781044557,-501.93164982,9.986e-05,2]
[348779740,1736781044567,-500.0,9.986e-05,2]
[348779741,1736781044578,-500.0,9.986e-05,2]
[348779742,1736781044589,-500.0,9.986e-05,2]
[348779743,1736781044599,-500.0,9.986e-05,2]
[348779744,1736781044609,-500.0,9.986e-05,2]
[348779745,1736781044623,-500.0,9.986e-05,2]
[348779746,1736781044633,-500.0,9.986e-05,2]
[348779747,1736781044644,-500.0,9.986e-05,2]
[348779748,1736781044653,-500.0,9.986e-05,2]
[348779749,1736781044664,-150.0,9.986e-05,2]
[348779750,1736781044674,-500.0,9.986e-05,2]
[348779751,1736781044684,-500.0,9.986e-05,2]
[348779752,1736781044694,-500.0,9.986e-05,2]
[348779753,1736781044704,-500.0,9.986e-05,2]
[348779754,1736781044714,-500.0,9.986e-05,2]
[348779755,1736781044728,-500.0,9.986e-05,2]
[348779756,1736781044741,-500.0,9.986e-05,2]
[348779757,1736781044754,-500.0,9.986e-05,2]
[348779758,1736781044763,-500.0,9.986e-05,2]
[348779759,1736781044772,-187.37459291,9.986e-05,2]
[348779760,1736781044783,-500.0,9.986e-05,2]
[348779761,1736781044794,-500.0,9.986e-05,2]
[348779762,1736781044805,-500.0,9.986e-05,2]
[348779763,1736781044814,-500.0,9.986e-05,2]
[348779764,1736781044824,-500.0,9.986e-05,2]
[348779765,1736781044834,-500.0,9.986e-05,2]
[348779766,1736781044843,-500.0,9.986e-05,2]
[348779767,1736781044853,-500.0,9.986e-05,2]
[348779768,1736781044863,-500.0,9.986e-05,2]
[348779769,1736781044874,-500.0,9.986e-05,2]
[348779770,1736781044884,-500.0,9.986e-05,2]
[348779771,1736781044894,-500.0,9.986e-05,2]
[348779772,1736781044904,-500.0,9.986e-05,2]
[348779773,1736781044913,-500.0,9.986e-05,2]
[348779774,1736781044923,-500.0,9.986e-05,2]
[348779775,1736781044932,-500.0,9.986e-05,2]
[348779776,1736781044942,-572.3629831,9.986e-05,2]
[348779777,1736781044952,-500.0,9.986e-05,2]
[348779778,1736781044961,-500.0,9.986e-05,2]
[348779779,1736781044971,-500.0,9.986e-05,2]
[348779780,1736781044980,-500.0,9.986e-05,2]
[348779781,1736781044990,-500.0,9.986e-05,2]
[348779782,1736781044999,-500.0,9.986e-05,2]
[348779783,1736781045009,-500.0,9.986e-05,2]
[348779784,1736781045018,-500.0,9.986e-05,2]
[348779785,1736781045028,-500.0,9.986e-05,2]
[348779786,1736781045040,-1740.25,9.986e-05,2]
[348779787,1736781045051,-1204.96,9.986e-05,2]
[348779788,1736781045061,-1337.41,9.986e-05,2]
[348779789,1736781045071,-3320.96,9.986e-05,2]
[348779790,1736781045081,-935.33,9.986e-05,2]
[348779791,1736781045091,-500.0,9.986e-05,2]
[348779792,1736781045101,-1115.16,9.986e-05,2]
[348779793,1736781045111,-838.19,9.986e-05,2]
[348779794,1736781045120,-200.0,9.986e-05,2]
[348779795,1736781045129,-541.42,9.987e-05,2]
[348779796,1736781045197,-567.18,9.987e-05,2]
[348779797,1736781045206,-1780.09,9.987e-05,2]
[348779798,1736781045216,-500.0,9.987e-05,2]
[348779799,1736781045226,-500.0,9.987e-05,2]
[348779800,1736781045237,-1041.22,9.987e-05,2]
[348779801,1736781045246,-406.95,9.987e-05,2]
[348779802,1736781045256,-563.05098102,9.988e-05,2]
[348779803,1736781045266,-200.0,9.989e-05,2]
[348779804,1736781045275,-563.05098102,9.989e-05,2]
[348779805,1736781045286,-200.0,9.991e-05,2]
[348779806,1736781045295,-200.0,9.991e-05,2]
[348779807,1736781045305,-563.05098102,9.995e-05,2]
[348779808,1736781045314,-1365.81,9.998e-05,2]
[348779809,1736781045325,-956.03,9.998e-05,2]
[348779810,1736781045334,-902.73,9.998e-05,2]
[348779811,1736781045344,-745.28,9.998e-05,2]
[348779812,1736781045354,-500.0,9.998e-05,2]
[348779813,1736781045363,-900.09,9.998e-05,2]
[348779814,1736781045372,-1047.7,9.998e-05,2]
[348779815,1736781045382,-694.11,9.998e-05,2]
[348779816,1736781045391,-1261.35,9.998e-05,2]
[348779817,1736781045400,-1046.61,9.998e-05,2]
[348779818,1736781045410,-421.76876256,0.0001,4]
[348779819,1736781045419,-5296.52300133,0.0001,4]
[348779820,1736781045429,-367.5215054,0.0001,2]
[348779821,1736781045438,-301.6876606,0.0001,2]
[348779822,1736781045447,-400.84309138,0.0001,2]
[348779823,1736781045456,-400.84309115,0.00010003,2]
[348779824,1736781045465,-400.84309115,0.00010107,2]
[348779825,1736781045474,-1000.0,0.00010109,2]
[348779826,1736781045484,-150.42,0.00010137,2]
[348779827,1736781045493,-400.84309115,0.0001021,2]
[348779828,1736781045503,-500.0,0.00010258,2]
[348779829,1736781045513,-2113.26,0.00010258,2]
[348779830,1736781045522,-272.99,0.00010258,2]
[348779831,1736781045534,-1620.44,0.00010258,2]
[348779832,1736781045546,-500.0,0.00010258,2]
[348779833,1736781045556,-1145.76,0.00010258,2]
[348779834,1736781045565,-2273.33,0.00010258,2]
[348779835,1736781045575,-500.0,0.00010258,2]
[348779836,1736781045586,-500.0,0.00010258,2]
[348779837,1736781045596,-714.16,0.00010258,2]
[348779838,1736781045606,-500.0,0.00010258,2]
[348779839,1736781045615,-500.0,0.00010258,2]
[348779840,1736781045625,-1574.97,0.00010258,2]
[348779841,1736781045635,-500.0,0.00010258,2]
[348779842,1736781045645,-500.0,0.00010258,2]
[348779843,1736781045654,-500.0,0.00010258,2]
[348779844,1736781045664,-500.0,0.00010258,2]
[348779845,1736781045673,-812.01,0.00010258,2]
[348779846,1736781045683,-500.0,0.00010258,2]
[348779847,1736781045693,-500.0,0.00010258,2]
[348779848,1736781045702,-589.9,0.00010259,2]
[348779849,1736781045711,-500.0,0.00010259,2]
[348779850,1736781045722,-500.0,0.00010259,2]
[348779851,1736781045731,-597.62,0.00010259,2]
[348779852,1736781045740,-1284.02,0.00010259,2]
[348779853,1736781045750,-1609.2,0.00010259,2]
[348779854,1736781045759,-988.31,0.00010259,2]
[348779855,1736781045769,-730.11,0.00010259,2]
[348779856,1736781045778,-2036.03,0.00010259,2]
[348779857,1736781045789,-500.0,0.00010259,2]
[348779858,1736781045797,-500.0,0.00010259,2]
[348779859,1736781045806,-500.0,0.00010259,2]
[348779860,1736781045816,-500.0,0.00010259,2]
[348779861,1736781045826,-2273.86,0.00010259,2]
[348779862,1736781045835,-500.0,0.00010259,2]
[348779863,1736781045844,-805.23,0.00010259,2]
[348779864,1736781045853,-553.16,0.00010259,2]
[348779865,1736781045863,-500.0,0.00010259,2]
[348779866,1736781045872,-500.0,0.00010259,2]
[348779867,1736781045881,-500.0,0.00010259,2]
[348779868,1736781045891,-500.0,0.00010259,2]
[348779869,1736781045901,-500.0,0.00010259,2]
[348779870,1736781045911,-500.0,0.00010259,2]
[348779871,1736781045920,-500.0,0.00010259,2]
[348779872,1736781045930,-500.0,0.00010259,2]
[348779873,1736781045939,-500.0,0.00010259,2]
[348779874,1736781045949,-500.0,0.00010259,2]
[348779875,1736781045958,-500.0,0.00010259,2]
[348779876,1736781045967,-500.0,0.00010259,2]
[348779877,1736781045976,-500.0,0.00010259,2]
[348779878,1736781045986,-500.0,0.00010259,2]
[348779879,1736781045996,-500.0,0.00010259,2]
[348779880,1736781046006,-833.42,0.00010259,2]
[348779881,1736781046016,-500.0,0.00010259,2]
[348779882,1736781046026,-500.0,0.00010259,2]
[348779883,1736781046037,-328.49880022,0.00010259,2]
[348779884,1736781046046,-500.0,0.00010259,2]
[348779885,1736781046056,-500.0,0.00010259,2]
[348779886,1736781046065,-568.96,0.00010259,2]
[348779887,1736781046075,-500.0,0.00010259,2]
[348779888,1736781046084,-646.98,0.00010259,2]
[348779889,1736781046093,-500.0,0.00010259,2]
[348779890,1736781046103,-500.0,0.00010259,2]
[348779891,1736781046112,-500.0,0.00010259,2]
[348779892,1736781046121,-500.0,0.00010259,2]
[348779893,1736781046131,-500.0,0.00010259,2]
[348779894,1736781046140,-500.0,0.00010259,2]
[348779895,1736781046149,-500.0,0.00010259,2]
[348779896,1736781046158,-509.07611474,0.00010259,2]
[348779897,1736781046168,-500.0,0.00010259,2]
[348779898,1736781046178,-500.0,0.00010259,2]
[348779899,1736781046188,-500.0,0.00010259,2]
[348779900,1736781046197,-500.0,0.00010259,2]
[348779901,1736781046207,-1246.49,0.00010259,2]
[348779902,1736781046217,-500.0,0.00010259,2]
[348779903,1736781046225,-500.0,0.00010259,2]
[348779904,1736781046235,-500.0,0.00010259,2]
[348779905,1736781046244,-500.0,0.00010259,2]
[348779906,1736781046254,-500.0,0.00010259,2]
[348779907,1736781046263,-500.0,0.00010259,2]
[348779908,1736781046272,-500.0,0.00010259,2]
[348779909,1736781046282,-500.0,0.00010259,2]
[348779910,1736781046293,-500.0,0.00010259,2]
[348779911,1736781046303,-500.0,0.00010259,2]
[348779912,1736781046312,-500.0,0.00010259,2]
[348779913,1736781046322,-500.0,0.00010259,2]
[348779914,1736781046331,-500.0,0.00010259,2]
[348779915,1736781046340,-500.0,0.00010259,2]
[348779916,1736781046350,-500.0,0.00010259,2]
[348779917,1736781046359,-500.0,0.00010259,2]
[348779918,1736781046368,-500.0,0.00010259,2]
[348779919,1736781046378,-1200.84,0.00010259,2]
[348779920,1736781046387,-208.49063092,0.00010259,2]
[348779921,1736781046397,-500.0,0.00010259,2]
[348779922,1736781046407,-500.0,0.00010259,2]
[348779923,1736781046417,-500.0,0.00010259,2]
[348779924,1736781046426,-500.0,0.00010259,2]
[348779925,1736781046436,-500.0,0.00010259,2]
[348779926,1736781046445,-696.86,0.00010259,2]
[348779927,1736781046455,-500.0,0.00010259,2]
[348779928,1736781046464,-500.0,0.00010259,2]
[348779929,1736781046474,-500.0,0.00010259,2]
[348779930,1736781046483,-500.0,0.00010259,2]
[348779931,1736781046493,-500.0,0.00010259,2]
[348779932,1736781046502,-500.0,0.00010259,2]
[348779933,1736781046512,-500.0,0.00010259,2]
[348779934,1736781046521,-500.0,0.00010259,2]
[348779935,1736781046531,-500.0,0.00010259,2]
[348779936,1736781046545,-523.34,0.00010259,2]
[348779937,1736781046556,-457.46549109,0.00010259,2]
[348779938,1736781046566,-500.0,0.00010259,2]
[348779939,1736781046576,-500.0,0.00010259,2]
[348779940,1736781046586,-500.0,0.00010259,2]
[348779941,1736781046596,-500.0,0.00010259,2]
[348779942,1736781046605,-500.0,0.00010259,2]
[348779944,1736781046615,-500.0,0.00010259,2]
[348779946,1736781046626,-950.32,0.00010259,2]
[348779948,1736781046638,-500.0,0.00010259,2]
[348779950,1736781046647,-500.0,0.00010259,2]
[348779951,1736781046658,-732.18,0.00010259,2]
[348779952,1736781046667,-500.0,0.00010259,2]
[348779953,1736781046677,-500.0,0.00010259,2]
[348779954,1736781046687,-507.12431399,0.00010259,2]
[348779955,1736781046696,-500.0,0.00010259,2]
[348779956,1736781046705,-500.0,0.00010259,2]
[348779957,1736781046714,-500.0,0.00010259,2]
[348779958,1736781046723,-500.0,0.00010259,2]
[348779959,1736781046733,-687.35,0.00010259,2]
[348779960,1736781046742,-500.0,0.00010259,2]
[348779961,1736781046752,-164.60642404,0.00010259,2]
[348779962,1736781046762,-604.79378243,0.00010259,2]
[348779963,1736781046771,-500.0,0.00010259,2]
[348779964,1736781046780,-308.15936908,0.00010259,2]
[348779965,1736781046792,-518.38,0.00010259,2]
[348779966,1736781046801,-500.0,0.00010259,2]
[348779967,1736781046811,-500.0,0.00010259,2]
[348779968,1736781046821,-500.0,0.00010259,2]
[348779969,1736781046830,-500.0,0.00010259,2]
[348779970,1736781046840,-520.83,0.00010259,2]
[348779971,1736781046850,-500.0,0.00010259,2]
[348779972,1736781046860,-500.0,0.00010259,2]
[348779973,1736781046870,-673.27,0.00010259,2]
[348779974,1736781046880,-500.0,0.00010259,2]
[348779975,1736781046889,-500.0,0.00010259,2]
[348779976,1736781046899,-500.0,0.00010259,2]
[348779977,1736781046909,-773.47,0.00010259,2]
[348779978,1736781046918,-500.0,0.00010259,2]
[348779979,1736781046927,-500.0,0.00010259,2]
[348779981,1736781046936,-2655.33,0.00010259,2]
[348779983,1736781046946,-500.0,0.00010259,2]
[348779985,1736781046955,-500.0,0.00010259,2]
[348779987,1736781046964,-774.98,0.00010259,2]
[348779989,1736781046973,-809.49,0.00010259,2]
[348779990,1736781046983,-500.0,0.00010259,2]
[348779991,1736781046993,-548.79,0.00010259,2]
[348779992,1736781047002,-500.0,0.00010259,2]
[348779994,1736781047012,-500.0,0.00010259,2]
[348779996,1736781047022,-500.0,0.00010259,2]
[348779998,1736781047031,-500.0,0.00010259,2]
[348779999,1736781047042,-500.0,0.00010259,2]
[348780000,1736781047051,-500.0,0.00010259,2]
[348780001,1736781047063,-740.63,0.00010259,2]
[348780002,1736781047073,-500.0,0.00010259,2]
[348780004,1736781047083,-391.41878267,0.00010259,2]
[348780005,1736781047092,-500.0,0.00010259,2]
[348780006,1736781047103,-470.27521708,0.00010259,2]
[348780007,1736781047112,-500.0,0.00010259,2]
[348780008,1736781047122,-520.83,0.00010259,2]
[348780009,1736781047132,-500.0,0.00010259,2]
[348780010,1736781047142,-500.0,0.00010259,2]
[348780011,1736781047152,-584.51614515,0.00010259,2]
[348780012,1736781047161,-1536.22,0.00010259,2]
[348780013,1736781047172,-500.0,0.00010259,2]
[348780014,1736781047181,-928.3,0.00010259,2]
[348780015,1736781047191,-500.0,0.00010259,2]
[348780016,1736781047200,-500.0,0.00010259,2]
[348780017,1736781047211,-500.0,0.00010259,2]
[348780018,1736781047221,-500.0,0.00010259,2]
[348780019,1736781047231,-500.0,0.00010259,2]
[348780020,1736781047242,-500.0,0.00010259,2]
[348780021,1736781047252,-500.0,0.00010259,2]
[348780022,1736781047262,-500.0,0.00010259,2]
[348780023,1736781047273,-500.0,0.00010259,2]
[348780024,1736781047284,-500.0,0.00010259,2]
[348780025,1736781047295,-500.0,0.00010259,2]
[348780026,1736781047306,-532.08,0.00010259,2]
[348780027,1736781047319,-216.20492307,0.00010259,2]
[348780028,1736781047331,-500.0,0.00010259,2]
[348780029,1736781047341,-500.0,0.00010259,2]
[348780030,1736781047350,-500.0,0.00010259,2]
[348780032,1736781047360,-500.0,0.00010259,2]
[348780033,1736781047370,-500.0,0.00010259,2]
[348780034,1736781047379,-1882.34,0.00010259,2]
[348780035,1736781047390,-500.0,0.00010259,2]
[348780036,1736781047399,-500.0,0.00010259,2]
[348780037,1736781047409,-500.0,0.00010259,2]
[348780038,1736781047419,-500.0,0.00010259,2]
[348780039,1736781047428,-500.0,0.00010259,2]
[348780040,1736781047438,-500.0,0.00010259,2]
[348780041,1736781047447,-500.0,0.00010259,2]
[348780042,1736781047457,-500.0,0.00010259,2]
[348780043,1736781047467,-500.0,0.00010259,2]
[348780044,1736781047476,-537.52,0.00010259,2]
[348780045,1736781047486,-500.0,0.00010259,2]
[348780046,1736781047495,-500.0,0.00010259,2]
[348780047,1736781047505,-773.45,0.00010259,2]
[348780048,1736781047515,-500.0,0.00010259,2]
[348780049,1736781047524,-500.0,0.00010259,2]
[348780050,1736781047535,-500.0,0.00010259,2]
[348780051,1736781047548,-500.0,0.00010259,2]
[348780052,1736781047558,-500.0,0.00010259,2]
[348780053,1736781047568,-500.0,0.00010259,2]
[348780054,1736781047579,-500.0,0.00010259,2]
[348780055,1736781047588,-500.0,0.00010259,2]
[348780056,1736781047598,-500.0,0.00010259,2]
[348780057,1736781047607,-500.0,0.00010259,2]
[348780058,1736781047618,-500.0,0.00010259,2]
[348780059,1736781047627,-500.0,0.00010259,2]
[348780060,1736781047637,-500.0,0.00010259,2]
[348780061,1736781047647,-500.0,0.00010259,2]
[348780062,1736781047656,-500.0,0.00010259,2]
[348780063,1736781047665,-3151.22,0.00010259,2]
[348780064,1736781047674,-666.59,0.00010259,2]
[348780065,1736781047683,-500.0,0.00010259,2]
[348780066,1736781047693,-500.0,0.00010259,2]
[348780067,1736781047703,-500.0,0.00010259,2]
[348780068,1736781047712,-500.0,0.00010259,2]
[348780069,1736781047721,-500.0,0.00010259,2]
[348780070,1736781047731,-220.39197896,0.00010259,2]
[348780071,1736781047740,-500.0,0.00010259,2]
[348780072,1736781047750,-724.24,0.00010259,2]
[348780073,1736781047759,-500.0,0.00010259,2]
[348780074,1736781047768,-500.0,0.00010259,2]
[348780075,1736781047778,-545.46,0.00010259,2]
[348780076,1736781047789,-500.0,0.00010259,2]
[348780077,1736781047798,-500.0,0.00010259,2]
[348780078,1736781047808,-500.0,0.00010259,2]
[348780079,1736781047817,-500.0,0.00010259,2]
[348780080,1736781047827,-909.6,0.00010259,2]
[348780081,1736781047836,-500.0,0.00010259,2]
[348780082,1736781047845,-500.0,0.00010259,2]
[348780083,1736781047855,-500.0,0.00010259,2]
[348780084,1736781047864,-500.0,0.00010259,2]
[348780085,1736781047873,-500.0,0.00010259,2]
[348780086,1736781047883,-500.0,0.00010259,2]
[348780087,1736781047892,-277.36381645,0.00010259,2]
[348780088,1736781047901,-500.0,0.00010259,2]
[348780089,1736781047911,-500.0,0.00010259,2]
[348780090,1736781047920,-500.0,0.00010259,2]
[348780091,1736781047929,-500.0,0.00010259,2]
[348780092,1736781047939,-500.0,0.00010259,2]
[348780093,1736781047948,-502.72077135,0.00010259,2]
[348780094,1736781047957,-500.0,0.00010259,2]
[348780095,1736781047967,-500.0,0.00010259,2]
[348780096,1736781047976,-494.97257003,0.00010259,2]
[348780097,1736781047986,-500.0,0.00010259,2]
[348780098,1736781047996,-789.83,0.00010259,2]
[348780099,1736781048005,-500.0,0.00010259,2]
[348780100,1736781048015,-483.22315605,0.00010259,2]
[348780101,1736781048025,-500.0,0.00010259,2]
[348780102,1736781048035,-500.0,0.00010259,2]
[348780103,1736781048044,-500.0,0.00010259,2]
[348780104,1736781048054,-755.01,0.00010259,2]
[348780105,1736781048063,-500.0,0.00010259,2]
[348780106,1736781048073,-500.0,0.00010259,2]
[348780107,1736781048083,-500.0,0.00010259,2]
[348780108,1736781048093,-821.97,0.00010259,2]
[348780109,1736781048103,-500.0,0.00010259,2]
[348780110,1736781048114,-500.0,0.00010259,2]
[348780111,1736781048124,-500.0,0.00010259,2]
[348780112,1736781048134,-500.0,0.00010259,2]
[348780113,1736781048144,-1680.2,0.00010259,2]
[348780114,1736781048155,-500.0,0.00010259,2]
[348780115,1736781048164,-500.0,0.00010259,2]
[348780116,1736781048174,-500.0,0.00010259,2]
[348780117,1736781048184,-500.0,0.00010259,2]
[348780118,1736781048194,-500.0,0.00010259,2]
[348780119,1736781048204,-500.0,0.00010259,2]
[348780120,1736781048213,-502.31806837,0.00010259,2]
[348780121,1736781048223,-500.0,0.00010259,2]
[348780122,1736781048233,-500.0,0.00010259,2]
[348780123,1736781048243,-500.0,0.00010259,2]
[348780124,1736781048253,-500.0,0.00010259,2]
[348780125,1736781048263,-500.0,0.00010259,2]
[348780126,1736781048273,-547.08,0.00010259,2]
[348780127,1736781048286,-500.0,0.00010259,2]
[348780128,1736781048298,-500.0,0.00010259,2]
[348780129,1736781048310,-500.0,0.00010259,2]
[348780130,1736781048320,-500.0,0.00010259,2]
[348780131,1736781048330,-500.0,0.00010259,2]
[348780132,1736781048341,-500.0,0.00010259,2]
[348780133,1736781048352,-500.0,0.00010259,2]
[348780134,1736781048362,-500.0,0.00010259,2]
[348780135,1736781048372,-500.0,0.00010259,2]
[348780136,1736781048382,-166.86291129,0.00010259,2]
[348780137,1736781048393,-500.0,0.00010259,2]
[348780138,1736781048404,-734.92,0.00010259,2]
[348780139,1736781048414,-500.0,0.00010259,2]
[348780140,1736781048425,-500.0,0.00010259,2]
[348780141,1736781048435,-500.0,0.00010259,2]
[348780142,1736781048446,-500.0,0.00010259,2]
[348780143,1736781048457,-650.74,0.00010259,2]
[348780144,1736781048467,-500.0,0.00010259,2]
[348780145,1736781048478,-500.0,0.00010259,2]
[348780146,1736781048489,-500.0,0.00010259,2]
[348780147,1736781048501,-500.0,0.00010259,2]
[348780148,1736781048512,-500.0,0.00010259,2]
[348780149,1736781048523,-500.0,0.00010259,2]
[348780150,1736781048537,-517.51,0.00010259,2]
[348780151,1736781048551,-3198.06,0.00010259,2]
[348780152,1736781048564,-500.0,0.00010259,2]
[348780153,1736781048575,-500.0,0.00010259,2]
[348780154,1736781048588,-500.0,0.00010259,2]
[348780155,1736781048599,-500.0,0.00010259,2]
[348780156,1736781048609,-500.0,0.00010259,2]
[348780157,1736781048620,-500.0,0.00010259,2]
[348780158,1736781048631,-500.0,0.00010259,2]
[348780159,1736781048642,-500.0,0.00010259,2]
[348780160,1736781048652,-500.0,0.00010259,2]
[348780161,1736781048663,-500.0,0.00010259,2]
[348780162,1736781048674,-500.0,0.00010259,2]
[348780163,1736781048684,-500.0,0.00010259,2]
[348780164,1736781048694,-500.0,0.00010259,2]
[348780165,1736781048704,-505.54684248,0.00010259,2]
[348780166,1736781048715,-249.73402863,0.00010259,2]
[348780167,1736781048726,-931.27,0.00010259,2]
[348780168,1736781048736,-500.0,0.00010259,2]
[348780169,1736781048747,-775.89,0.00010259,2]
[348780170,1736781048757,-500.0,0.00010259,2]
[348780171,1736781048769,-500.00000022,0.00010259,2]
[348780172,1736781048780,-500.0,0.00010259,2]
[348780173,1736781048796,-500.0,0.00010259,2]
[348780174,1736781048807,-312.76982956,0.00010259,2]
[348780175,1736781048819,-836.54,0.00010259,2]
[348780176,1736781048829,-500.0,0.00010259,2]
[348780177,1736781048840,-500.0,0.00010259,2]
[348780178,1736781048850,-1686.96,0.00010259,2]
[348780179,1736781048860,-500.0,0.00010259,2]
[348780180,1736781048870,-500.0,0.00010259,2]
[348780181,1736781048880,-567.37,0.00010259,2]
[348780182,1736781048890,-500.0,0.00010259,2]
[348780183,1736781048900,-500.0,0.00010259,2]
[348780184,1736781048911,-500.0,0.00010259,2]
[348780185,1736781048921,-170.63447469,0.00010259,2]
[348780186,1736781048931,-578.04,0.00010259,2]
[348780187,1736781048943,-500.0,0.00010259,2]
[348780188,1736781048954,-501.68291369,0.00010259,2]
[348780189,1736781048966,-500.0,0.00010259,2]
[348780190,1736781048977,-500.0,0.00010259,2]
[348780191,1736781048988,-4315.13,0.00010259,2]
[348780192,1736781048998,-1882.24,0.00010259,2]
[348780193,1736781049008,-500.0,0.00010259,2]
[348780194,1736781049018,-500.0,0.00010259,2]
[348780195,1736781049029,-808.8,0.00010259,2]
[348780196,1736781049045,-500.0,0.00010259,2]
[348780197,1736781049056,-500.0,0.00010259,2]
[348780198,1736781049068,-508.08364678,0.00010259,2]
[348780199,1736781049079,-500.0,0.00010259,2]
[348780200,1736781049261,-328.95613005,0.00010259,2]
[348780201,1736781049271,-500.0,0.00010259,2]
[348780202,1736781049282,-6573.2,0.00010259,2]
[348780203,1736781049299,-152.650578,0.00010259,2]
[348780204,1736781049309,-641.65567829,0.00010259,2]
[348780205,1736781049319,-500.0,0.00010259,2]
[348780206,1736781049329,-500.0,0.00010259,2]
[348780207,1736781049339,-563.79,0.00010259,2]
[348780208,1736781049349,-908.18,0.00010259,2]
[348780209,1736781049359,-500.0,0.00010259,2]
[348780210,1736781049370,-500.0,0.00010259,2]
[348780211,1736781049380,-368.55373713,0.00010259,2]
[348780212,1736781049390,-500.0,0.00010259,2]
[348780213,1736781049399,-500.0,0.00010259,2]
[348780214,1736781049409,-3092.56,0.00010259,2]
[348780215,1736781049419,-500.0,0.00010259,2]
[348780216,1736781049428,-500.0,0.00010259,2]
[348780217,1736781049438,-500.0,0.00010259,2]
[348780218,1736781049448,-500.0,0.00010259,2]
[348780219,1736781049458,-816.12,0.00010259,2]
[348780220,1736781049468,-500.0,0.00010259,2]
[348780221,1736781049478,-665.42,0.00010259,2]
[348780222,1736781049489,-500.0,0.00010259,2]
[348780223,1736781049499,-500.0,0.00010259,2]
[348780224,1736781049510,-500.0,0.00010259,2]
[348780225,1736781049520,-500.0,0.00010259,2]
[348780226,1736781049531,-500.0,0.00010259,2]
[348780227,1736781049549,-500.0,0.00010259,2]
[348780228,1736781049559,-500.0,0.00010259,2]
[348780229,1736781049570,-500.0,0.00010259,2]
[348780230,1736781049581,-1177.52,0.00010259,2]
[348780231,1736781049592,-500.0,0.00010259,2]
[348780232,1736781049602,-500.0,0.00010259,2]
[348780233,1736781049612,-500.0,0.00010259,2]
[348780234,1736781049622,-156.28572,0.00010259,2]
[348780235,1736781049635,-3267.6,0.00010259,2]
[348780236,1736781049646,-500.0,0.00010259,2]